bitfinex-derivatives/quotes_ETHF0:USTF0_20250531
["timestamp","ask_amount","ask_price","bid_price","bid_amount"]
[1748666782296,0.79302,2521.0,2520.7,0.79309]
[1748666782599,1.3678,2520.9,2520.7,0.79309]
[1748666782896,1.3678,2520.9,2520.8,0.79308]
[1748666784902,1.3678,2520.9,2520.5,4.4427]
[1748666785099,2.16087,2520.9,2520.6,0.79313]
[1748666785805,1.3678,2520.9,2520.7,0.7931]
[1748666786309,1.3678,2520.9,2520.8,0.79308]
[1748666786505,1.3678,2520.9,2520.7,0.79309]
[1748666787108,2.16085,2520.9,2520.7,0.79309]
[1748666787407,1.3678,2520.9,2520.5,4.4877]
[1748666787707,1.3678,2520.9,2520.8,0.79308]
[1748666788308,2.16086,2520.9,2520.5,4.4877]
[1748666788608,2.16086,2520.9,2520.6,0.79311]
[1748666788907,1.3014,2520.8,2520.7,0.79311]
[1748666789510,1.3014,2520.8,2520.6,0.79312]
[1748666789809,1.3014,2520.8,2520.7,0.79311]
[1748666790508,1.3014,2520.8,2520.6,0.79313]
[1748666791109,1.3014,2520.8,2520.7,0.79311]
[1748666791509,1.3014,2520.8,2520.6,0.79314]
[1748666791710,1.3014,2520.8,2520.7,0.79311]
[1748666792408,2.09448,2520.8,2520.6,0.79313]
[1748666792609,1.3014,2520.8,2520.7,0.79311]
[1748666793109,2.09448,2520.8,2520.6,0.79313]
[1748666793310,1.3014,2520.8,2520.7,0.79311]
[1748666794999,2.69450059,2520.8,2520.7,0.79311]
[1748666795207,1.39310059,2520.8,2520.7,0.79311]
[1748666797098,1.39310059,2520.8,2520.6,2.13203]
[1748666797099,2.18618059,2520.8,2520.6,2.13203]
[1748666797312,1.39310059,2520.8,2520.6,1.3389]
[1748666797608,1.39310059,2520.8,2520.7,0.79311]
[1748666797910,0.79308,2520.8,2520.6,2.13202]
[1748666798205,0.7931,2520.8,2520.6,2.13204]
[1748666798414,1.3422,2520.9,2520.5,3.2078]
[1748666798608,0.79313,2520.7,2520.5,4.00097]
[1748666799009,0.6314,2520.6,2520.5,4.00097]
[1748666799508,0.6314,2520.6,2520.5,5.28217]
[1748666799710,2.02467999,2520.6,2520.5,5.28217]
[1748666800311,0.7932,2520.5,2520.3,0.79919581]
[1748666800608,2.02467999,2520.6,2520.3,0.00595581]
[1748666800802,1.39327999,2520.5,2520.3,1.28715581]
[1748666801002,3.44676999,2520.5,2520.3,0.00595581]
[1748666801205,3.44676999,2520.5,2520.3,0.79919581]
[1748666801414,1.39327999,2520.4,2520.3,0.79919581]
[1748666802416,1.39327999,2520.4,2520.3,2.15859581]
[1748666803215,1.39327999,2520.5,2520.4,0.79321]
[1748666804518,2.18645999,2520.5,2520.3,2.15857581]
[1748666805318,1.39327999,2520.4,2520.3,2.15857581]
[1748666805918,2.18648999,2520.4,2520.3,1.36535581]
[1748666806118,1.39327999,2520.4,2520.3,2.15859581]
[1748666807012,2.18648999,2520.4,2520.3,1.36535581]
[1748666807212,2.18648999,2520.4,2520.3,0.00595581]
[1748666807614,3.43588999,2520.4,2520.3,0.00595581]
[1748666808625,0.79333,2520.0,2519.9,3.2078]
[1748666809423,1.39327999,2520.0,2519.9,4.00116]
[1748666811027,1.39327999,2520.1,2520.0,0.79333]
[1748666811925,1.39327999,2520.1,2520.0,2.11323]
[1748666812120,2.18657999,2520.1,2520.0,2.11323]
[1748666812322,1.39327999,2520.1,2520.0,2.11323]
[1748666812829,1.39327999,2520.3,2520.2,0.79327]
[1748666814216,2.18651999,2520.3,2520.1,2.11318]
[1748666814530,0.79327,2520.2,2520.1,1.3199]
[1748666814924,0.79331,2520.1,2519.9,4.00116]
[1748666815226,0.79333,2520.0,2519.9,3.2078]
[1748666815729,2.18660999,2520.0,2519.9,3.2078]
[1748666816127,4.11520999,2520.0,2519.9,3.2078]
[1748666820331,2.82430999,2520.0,2519.9,3.2078]
[1748666821032,0.7934,2519.8,2519.7,0.00595581]
[1748666821829,2.18667999,2519.8,2519.7,0.00595581]
[1748666822334,1.39327999,2519.8,2519.7,0.79938581]
[1748666822836,2.18667999,2519.8,2519.7,0.79938581]
[1748666823225,2.18667999,2519.8,2519.7,0.00595581]
[1748666825541,1.39327999,2519.8,2519.7,0.79938581]
[1748666826037,2.18667999,2519.8,2519.7,0.00595581]
[1748666826336,2.18667999,2519.8,2519.7,1.32055581]
[1748666827237,2.18667999,2519.8,2519.7,0.00595581]
[1748666828644,1.39327999,2519.8,2519.7,0.79938581]
[1748666828944,2.18667999,2519.8,2519.7,2.11398581]
[1748666829634,2.18667999,2519.8,2519.7,1.32055581]
[1748666830440,2.18667999,2519.8,2519.7,2.11398581]
[1748666830631,1.39327999,2519.8,2519.7,2.11398581]
[1748666831138,1.39327999,2519.8,2519.7,2.79238581]
[1748666831529,1.39327999,2519.9,2519.8,0.7934]
[1748666832336,1.39327999,2520.0,2519.9,0.79336]
[1748666838043,1.39327999,2520.1,2519.9,0.79336]
[1748666838241,2.18657999,2520.1,2519.9,0.79334]
[1748666838442,1.39327999,2520.1,2520.0,0.79333]
[1748666839543,1.39327999,2520.2,2520.1,0.7933]
[1748666845160,1.39327999,2520.2,2519.9,1.2705]
[1748666845555,2.18655999,2520.2,2520.0,0.79332]
[1748666845859,2.18653999,2520.3,2520.1,0.7933]
[1748666846359,1.39327999,2520.2,2520.1,0.7933]
[1748666852062,1.39327999,2520.2,2520.1,2.1247]
[1748666852262,1.39327999,2520.3,2520.2,0.79327]
[1748666852460,2.18651999,2520.3,2520.1,2.12468]
[1748666852773,2.18651999,2520.3,2520.2,0.79327]
[1748666853268,1.39327999,2520.2,2520.1,2.1247]
[1748666853658,1.39327999,2520.2,2520.1,10.3325]
[1748666853867,2.36673368,2520.6,2520.5,0.79317]
[1748666854766,2.36673368,2520.6,2520.5,4.00097]
[1748666854967,3.01943368,2521.0,2520.5,3.2078]
[1748666855268,2.36673368,2521.0,2520.9,0.79305]
[1748666855665,0.68315581,2521.1,2521.0,0.79302]
[1748666856384,1e-08,2521.2,2521.1,0.79299]
[1748666856669,1e-08,2521.2,2521.1,4.00079]
[1748666856872,1e-08,2521.4,2521.3,0.79292]
[1748666857460,1e-08,2521.4,2521.3,2.14552]
[1748666857866,0.00595581,2521.6,2521.4,0.79286]
[1748666858075,0.00595581,2521.6,2521.5,0.79286]
[1748666858278,0.00595581,2521.6,2521.5,1.41306]
[1748666859270,0.00595581,2521.6,2521.5,2.76566]
[1748666861175,1.3672,2522.1,2521.5,12.96195]
[1748666861472,1.3344,2522.3,2521.7,3.2078]
[1748666861669,2.667,2522.3,2522.0,0.7927]
[1748666861864,2.667,2522.3,2522.1,0.79267]
[1748666862171,2.667,2522.3,2522.0,3.2078]
[1748666862674,2.667,2522.3,2522.1,0.79267]
[1748666863274,2.667,2522.3,2522.2,0.79264]
[1748666863575,1.3344,2522.3,2522.2,0.79264]
[1748666863768,4.80451581,2522.5,2522.1,1.3045]
[1748666863769,0.00595581,2522.5,2522.4,0.79258]
[1748666863968,0.00595581,2522.5,2522.4,4.00038]
[1748666865769,0.00595581,2522.5,2522.4,8.00638]
[1748666870480,0.00595581,2522.5,2522.4,4.00038]
[1748666870675,0.00595581,2522.5,2522.0,7.2128]
[1748666870874,0.79259,2522.4,2522.1,0.79266]
[1748666871074,2.5799,2522.3,2522.2,0.79264]
[1748666871678,2.5799,2522.3,2522.1,0.79266]
[1748666871876,3.37251,2522.3,2522.1,0.79266]
[1748666872074,2.5799,2522.3,2522.2,0.79264]
[1748666872682,2.5799,2522.3,2522.1,0.79265]
[1748666872972,0.79267,2522.1,2522.0,3.2078]
[1748666873165,0.79271,2522.0,2521.7,0.79277]
[1748666873369,2.14251,2522.0,2521.7,0.79277]
[1748666874077,1.3498,2522.0,2521.8,0.79276]
[1748666874267,2.14251,2522.0,2521.7,0.79278]
[1748666874474,1.3498,2522.0,2521.7,0.79278]
[1748666874779,1.3498,2522.0,2521.8,0.79276]
[1748666875079,1.3498,2522.0,2521.9,0.79273]
[1748666876279,2.14252,2522.0,2521.5,4.5362]
[1748666876480,2.14252,2522.0,2521.7,0.7928]
[1748666876679,1.3498,2522.0,2521.8,0.79276]
[1748666876979,1.3498,2522.0,2521.5,4.5362]
[1748666877172,1.3498,2522.0,2521.9,0.79273]
[1748666878378,1.3498,2522.0,2521.8,0.79275]
[1748666878579,4.00045,2522.2,2522.0,0.7927]
[1748666878774,5.28275,2522.2,2522.0,0.7927]
[1748666879075,5.28275,2522.2,2521.9,0.79273]
[1748666879476,4.4901,2522.2,2521.9,0.79273]
[1748666879677,5.28276,2522.2,2521.9,0.79273]
[1748666880075,0.79267,2522.1,2521.9,0.79273]
[1748666880275,1.2823,2522.0,2521.9,0.79273]
[1748666880779,5.337,2522.3,2522.0,0.79268]
[1748666880978,2.09395,2522.2,2522.0,0.79268]
[1748666881281,3.51839714,2522.2,2522.0,0.79268]
[1748666881674,1.42444714,2522.1,2522.0,0.79268]
[1748666881874,2.72574714,2522.1,2521.9,0.79271]
[1748666882077,2.72574714,2522.1,2521.5,4.5362]
[1748666882277,2.72574714,2522.1,2521.5,3.2078]
[1748666882482,0.79283,2521.6,2521.5,3.2078]
[1748666882781,4.005,2522.0,2521.5,3.2078]
[1748666882984,0.79283,2521.6,2521.5,3.2078]
[1748666883179,0.79285,2521.6,2521.2,3.2078]
[1748666883375,2.6224,2521.5,2521.4,0.79289]
[1748666884182,0.79292,2521.4,2521.2,4.00075]
[1748666884485,2.6224,2521.5,2521.2,4.00075]
[1748666884486,1.2462,2521.3,2521.2,4.00075]
[1748666885783,2.67628179,2521.3,2521.2,4.00075]
[1748666886275,3.46920179,2521.3,2521.2,3.2078]
[1748666886477,2.67628179,2521.3,2521.2,4.00075]
[1748666887685,1.2462,2521.3,2521.2,4.00075]
[1748666887886,1.2462,2521.3,2521.2,3.2078]
[1748666888076,2.03912,2521.3,2521.2,3.2078]
[1748666888285,1.2462,2521.3,2521.2,4.00075]
[1748666888580,2.67664316,2521.3,2521.2,4.00075]
[1748666889082,1.3211,2521.5,2521.3,0.79292]
[1748666889282,1.43012729,2521.4,2521.3,0.79292]
[1748666889876,1.43012729,2521.4,2521.3,2.10812]
[1748666890286,2.6474,2521.5,2521.4,0.79289]
[1748666890880,2.6474,2521.5,2521.3,0.79292]
[1748666891288,3.44029,2521.5,2521.2,3.2078]
[1748666891582,3.44029,2521.5,2521.3,0.79292]
[1748666891786,0.7929,2521.4,2521.2,3.2078]
[1748666891985,1.3103,2521.3,2521.2,4.00075]
[1748666893281,1.3211,2521.5,2521.3,0.79291]
[1748666894290,2.6108,2521.5,2521.4,0.79289]
[1748666894884,1.3211,2521.5,2521.4,0.79289]
[1748666895687,1.3211,2521.5,2521.4,2.04729]
[1748666895992,0.6515,2521.5,2521.4,2.04729]
[1748666896288,4.0,2521.7,2521.4,1.2544]
[1748666896488,4.0,2521.7,2521.6,0.79283]
[1748666896690,4.7928,2521.7,2521.5,0.79285]
[1748666896987,6.22302714,2521.7,2521.5,0.79285]
[1748666897388,1.43022714,2521.6,2521.5,0.79285]
[1748666899190,0.22296714,2521.6,2521.5,9.00065]
[1748666899391,0.22296714,2521.7,2521.6,0.79283]
[1748666899691,0.22296714,2521.7,2521.6,6.04853]
[1748666899896,0.22296714,2521.7,2521.6,11.04853]
[1748666900085,3.2078,2522.3,2521.6,11.04853]
[1748666900289,3.2078,2522.3,2522.1,0.79265]
[1748666900493,4.00041,2522.3,2522.0,0.79269]
[1748666900686,4.00041,2522.3,2522.1,1.2557]
[1748666900886,3.2078,2522.3,2522.1,1.2557]
[1748666901188,0.79272,2522.0,2521.7,0.79278]
[1748666901687,0.6172,2521.9,2521.7,0.79278]
[1748666902092,1.9066,2521.9,2521.8,0.79277]
[1748666902491,1.9066,2521.9,2521.7,0.79278]
[1748666902791,1.9066,2521.9,2521.8,0.79277]
[1748666903389,1.9066,2521.9,2521.7,0.79278]
[1748666903589,2.69935,2521.9,2521.6,2.04851]
[1748666903792,3.37195,2521.9,2521.7,0.79279]
[1748666904493,3.37195,2521.9,2521.6,2.04851]
[1748666904693,2.5792,2521.9,2521.5,7.2078]
[1748666904992,3.37195,2521.9,2521.6,0.79281]
[1748666905292,0.79278,2521.8,2521.4,1.2645]
[1748666905488,2.14198,2521.8,2521.4,1.2645]
[1748666905794,2.14198,2521.8,2521.6,0.79282]
[1748666905988,1.3492,2521.8,2521.6,0.79282]
[1748666906390,1.2898,2521.9,2521.7,0.7928]
[1748666906589,2.08255,2521.9,2521.7,0.7928]
[1748666906791,3.43175,2521.9,2521.6,0.79281]
[1748666907290,1.3492,2521.8,2521.7,0.7928]
[1748666907794,1.3492,2521.8,2521.6,0.79281]
[1748666908497,0.79283,2521.7,2521.3,0.657]
[1748666908797,0.79281,2521.7,2521.5,0.79284]
[1748666909194,0.79284,2521.6,2521.4,0.79288]
[1748666909398,2.11584,2521.6,2521.4,0.79288]
[1748666909596,0.6262,2521.5,2521.4,0.79288]
[1748666911594,0.79278,2521.8,2521.3,1.2701]
[1748666911798,1.42715207,2521.5,2521.3,1.2701]
[1748666912001,1.42715207,2521.5,2521.4,0.79289]
[1748666919204,2.22003207,2521.5,2521.2,0.79295]
[1748666919406,1.9532,2521.4,2521.3,0.79292]
[1748666920098,3.38035207,2521.4,2521.3,0.79292]
[1748666920905,1.42715207,2521.4,2521.3,0.79292]
[1748666921403,1.42715207,2521.5,2521.4,0.79289]
[1748666925202,2.74995207,2521.5,2521.4,0.79289]
[1748666929609,2.74995207,2521.5,2521.3,0.7929]
[1748666930315,3.54281207,2521.5,2521.3,0.7929]
[1748666930514,2.74995207,2521.5,2521.3,0.7929]
[1748666930814,1.42715207,2521.4,2521.3,0.7929]
[1748666932513,1.42715207,2521.4,2521.3,2.1516]
[1748666932716,1.42715207,2521.4,2521.3,2.7891]
[1748666933016,1.42715207,2521.4,2521.3,7.7891]
[1748666933221,1.42715207,2521.7,2521.6,0.79283]
[1748666933515,1.42715207,2521.7,2521.6,4.00063]
[1748666934112,1.42715207,2521.7,2521.6,9.00063]
[1748666934313,1.42715207,2521.7,2521.6,10.34933]
[1748666934711,1.42715207,2522.1,2522.0,0.7927]
[1748666935403,1.42715207,2522.1,2522.0,2.7793]
[1748666938914,1.42715207,2522.1,2522.0,2.1414]
[1748666940816,1.42715207,2522.2,2522.1,0.79267]
[1748666941017,5.21335581,2522.5,2522.3,0.79258]
[1748666941220,2.14448,2522.4,2522.2,4.00043]
[1748666941414,1.3519,2522.3,2522.2,4.00043]
[1748666941920,2.77992791,2522.3,2522.2,4.00043]
[1748666943523,1.42802791,2522.3,2522.2,4.00043]
[1748666943919,1.42802791,2522.3,2522.2,4.61953]
[1748666945522,2.00885581,2522.5,2522.3,0.79258]
[1748666945823,0.79261,2522.3,2522.2,3.2078]
[1748666946125,0.79264,2522.2,2522.0,0.79269]
[1748666946423,0.6771,2522.1,2522.0,0.79269]
[1748666946622,1.2946,2522.1,2522.0,0.79269]
[1748666947319,1.2946,2522.1,2521.9,3.2078]
[1748666947525,2.08728,2522.1,2521.9,4.00052]
[1748666947824,2.08728,2522.1,2521.4,4.77987]
[1748666947825,0.79281,2521.7,2521.4,4.77987]
[1748666948116,1.9597,2521.6,2521.5,0.79286]
[1748666948322,1.9597,2521.6,2521.4,3.987]
[1748666948323,1.9597,2521.6,2521.4,0.79287]
[1748666948517,2.0135,2521.5,2521.4,0.79287]
[1748666949120,2.0135,2521.5,2521.4,0.79289]
[1748666950622,3.44004725,2521.5,2521.4,0.79289]
[1748666953420,1.42654725,2521.5,2521.4,0.79289]
[1748666955732,0.79281,2521.7,2521.3,1.3204]
[1748666955940,0.79281,2521.7,2521.4,0.79288]
[1748666956237,3.30462379,2521.6,2521.4,0.79288]
[1748666956431,3.30462379,2521.6,2521.5,0.79286]
[1748666957335,2.04972379,2521.6,2521.5,0.79286]
[1748666959046,2.04972379,2521.6,2521.4,2.06996]
[1748666959245,3.36872379,2521.6,2521.4,0.79286]
[1748666959440,1.319,2521.5,2521.4,0.79286]
[1748666960139,0.6221,2521.6,2521.5,0.79286]
[1748666961243,2.04992977,2521.6,2521.5,0.79286]
[1748666966043,3.41842977,2521.6,2521.5,0.79286]
[1748666970852,0.79286,2521.5,2521.3,4.00071]
[1748666971047,3.41842977,2521.6,2521.3,4.5043]
[1748666971252,1.2523,2521.5,2521.4,0.79289]
[1748666972252,2.68012977,2521.5,2521.4,0.79289]
[1748666973354,1.42782977,2521.5,2521.4,0.79289]
[1748666973555,1.42782977,2521.5,2521.4,2.16349]
[1748666981064,1.42782977,2521.5,2521.4,5.37129]
[1748666981466,1.42782977,2521.5,2521.4,3.2078]
[1748666981657,2.75792977,2521.5,2521.4,3.2078]
[1748666982465,2.75792977,2521.5,2521.4,4.00069]
[1748666982766,2.75792977,2521.5,2521.4,3.2078]
[1748666984365,2.75792977,2521.5,2521.4,4.00069]
[1748666985465,2.75792977,2521.5,2521.4,0.79289]
[1748666986056,1.42782977,2521.5,2521.4,0.79289]
[1748666987367,1.42782977,2521.5,2521.2,3.8737]
[1748666987670,2.70602977,2521.5,2521.2,3.8737]
[1748666988057,1.42782977,2521.5,2521.4,0.79289]
[1748666988259,0.6586,2521.6,2521.5,0.79286]
[1748666989368,2.09285857,2521.6,2521.5,0.79286]
[1748666992169,2.88568857,2521.6,2521.4,0.79287]
[1748666992371,3.42065857,2521.6,2521.5,0.79286]
[1748666998375,2.09285857,2521.6,2521.5,0.79286]
[1748666998570,1.43425857,2521.6,2521.5,0.79286]
[1748667001077,1.43425857,2521.6,2521.3,1.3542]
[1748667001277,1.43425857,2521.6,2521.5,0.79286]
[1748667001875,1.43425857,2521.6,2521.4,0.79288]
[1748667002078,0.6834,2521.5,2521.4,0.79288]
[1748667002278,2.0079,2521.5,2521.4,0.79288]
[1748667002775,0.6834,2521.5,2521.4,0.79288]
[1748667003273,2.11765857,2521.5,2521.4,0.79288]
[1748667004687,1.43425857,2521.5,2521.4,0.79288]
[1748667004979,8.57e-06,2521.5,2521.4,5.79288]
[1748667005881,1.44759,2522.4,2521.6,1.98205]
[1748667006072,1.44759,2522.4,2522.1,0.79265]
[1748667006273,1.3661,2522.3,2522.2,0.79264]
[1748667009784,0.655,2522.4,2522.3,0.79261]
[1748667010581,0.00595581,2522.5,2522.4,0.79258]
[1748667011781,0.00595581,2522.5,2522.4,2.05628]
[1748667019689,0.00595581,2522.5,2522.4,5.26408]
[1748667021193,0.00595581,2522.5,2522.4,4.00038]
[1748667021593,1.32705581,2522.5,2522.4,4.00038]
[1748667023500,0.00595581,2522.5,2522.4,4.00038]
[1748667023791,0.00595581,2522.5,2522.4,5.35148]
[1748667039906,0.00595581,2522.5,2522.4,4.00038]
[1748667042906,1.26065581,2522.5,2522.4,4.00038]
[1748667043215,0.00595581,2522.5,2522.4,4.00038]
[1748667043716,1.42233882,2522.5,2522.4,4.00038]
[1748667045911,1.42233882,2522.5,2522.4,7.96338]
[1748667053520,0.00595581,2522.5,2522.4,7.96338]
[1748667054815,1.42322637,2522.5,2522.4,7.96338]
[1748667057317,1.42322637,2522.5,2522.1,7.1708]
[1748667057616,1.3282,2522.4,2522.1,3.2078]
[1748667057816,0.79264,2522.2,2522.1,3.2078]
[1748667058014,0.79273,2522.0,2521.6,4.00062]
[1748667058207,0.6778,2521.9,2521.6,4.00062]
[1748667058414,1.3282,2521.9,2521.6,4.00062]
[1748667058614,1.3282,2521.9,2521.5,3.963]
[1748667058615,2.21005056,2521.8,2521.2,7.1708]
[1748667058822,5.41785056,2521.8,2521.2,7.1708]
[1748667059216,1.41727056,2521.7,2521.2,7.1708]
[1748667059718,1.41727056,2521.7,2521.5,0.79286]
[1748667060221,1.41727056,2521.7,2521.6,0.79283]
[1748667060423,1.3282,2521.9,2521.6,0.79282]
[1748667060928,1.41535517,2521.8,2521.6,0.79282]
[1748667061119,1.41535517,2521.8,2521.5,3.2078]
[1748667061318,2.20812517,2521.8,2521.5,3.2078]
[1748667061515,1.41535517,2521.7,2521.5,3.2078]
[1748667061719,1.41535517,2521.7,2521.5,4.00066]
[1748667062025,0.79278,2521.8,2521.5,3.2078]
[1748667062227,0.79278,2521.8,2521.5,4.00065]
[1748667062428,1.3282,2521.9,2521.5,4.00065]
[1748667062429,2.12095,2521.9,2521.5,4.00065]
[1748667062632,2.12095,2521.9,2521.6,0.79283]
[1748667062829,1.4136557,2521.8,2521.6,0.79283]
[1748667063426,2.12095,2521.9,2521.6,0.79283]
[1748667063725,0.79283,2521.6,2521.2,3.2078]
[1748667063932,0.6546,2521.5,2521.4,0.79289]
[1748667065229,0.8528,2521.5,2521.4,0.79289]
[1748667067728,0.1982,2521.5,2521.4,0.79289]
[1748667068121,0.1982,2521.5,2521.4,2.08599]
[1748667068525,0.1982,2521.5,2521.4,2.70779]
[1748667072930,3.2078,2522.3,2522.2,0.79264]
[1748667073433,1.3073,2522.4,2522.3,0.79261]
[1748667073633,0.00595581,2522.5,2522.4,0.79258]
[1748667074935,0.00595581,2522.5,2522.4,2.06488]
[1748667076440,0.00595581,2522.5,2522.3,0.7926]
[1748667076744,1.31275581,2522.5,2522.3,0.7926]
[1748667078029,1.31275581,2522.5,2522.2,4.00043]
[1748667078230,1.31275581,2522.5,2522.3,0.7926]
[1748667078431,1.31275581,2522.5,2522.2,3.2078]
[1748667078729,1.31275581,2522.5,2522.2,4.00043]
[1748667078930,1.31275581,2522.5,2522.2,3.2078]
[1748667079329,1.31275581,2522.5,2522.3,0.79261]
[1748667079529,2.10532581,2522.5,2522.2,4.00043]
[1748667079837,1.31275581,2522.5,2522.2,4.00043]
[1748667080031,1.3205,2522.4,2522.2,4.00043]
[1748667080330,0.667,2522.3,2522.2,4.00043]
[1748667080525,1.3494,2522.3,2522.2,4.00043]
[1748667083540,1.3494,2522.3,2522.2,3.2078]
[1748667084437,1.3494,2522.3,2522.2,4.00044]
[1748667085942,1.3494,2522.3,2522.2,3.2078]
[1748667086146,1.3494,2522.3,2522.2,4.00044]
[1748667086741,1.3494,2522.3,2522.2,0.79264]
[1748667087040,2.7657326,2522.3,2522.2,0.79264]
[1748667087339,2.0987326,2522.3,2522.2,4.00044]
[1748667087530,1.4163326,2522.3,2522.2,4.00044]
[1748667087733,0.00595581,2522.5,2522.4,0.79258]
[1748667088340,0.00595581,2522.5,2522.4,2.80288]
[1748667093646,0.00595581,2522.5,2522.4,6.01068]
[1748667093938,0.00595581,2522.5,2522.4,2.80288]
[1748667094244,0.00595581,2522.5,2522.4,6.01068]
[1748667100348,5.81e-06,2522.5,2522.4,11.01068]
[1748667101252,0.19820581,2522.5,2522.4,11.01068]
[1748667101453,5.81e-06,2522.5,2522.4,11.01068]
[1748667105055,5.81e-06,2522.5,2522.4,7.80288]
[1748667105247,5.81e-06,2522.5,2522.4,11.01068]
[1748667113363,0.00595581,2522.7,2522.6,0.79251]
[1748667113559,0.00595581,2522.7,2522.6,4.74051]
[1748667114566,0.00595581,2522.7,2522.6,7.94831]
[1748667114961,0.00595581,2522.7,2522.6,7.1558]
[1748667115174,0.00595581,2522.7,2522.6,4.00031]
[1748667117173,5.00595581,2522.7,2522.6,4.00031]
[1748667118676,0.00595581,2522.7,2522.6,4.00031]
[1748667121368,5.81e-06,2522.7,2522.6,4.00031]
[1748667124478,5.81e-06,2522.7,2522.6,9.00031]
[1748667127476,5.81e-06,2522.7,2522.6,4.00031]
[1748667134581,5.81e-06,2522.7,2522.6,7.94131]
[1748667145492,5.81e-06,2522.7,2522.6,4.73351]
[1748667145695,5.81e-06,2522.7,2522.6,7.94131]
[1748667162614,5.81e-06,2522.7,2522.6,4.00031]
[1748667162806,5.81e-06,2522.7,2522.6,7.93431]
[1748667171809,5.00000581,2522.7,2522.6,3.2078]
[1748667172007,5.00000581,2522.7,2522.6,1.1522]
[1748667172211,6.42057925,2522.7,2522.6,1.94471]
[1748667173515,5.00000581,2522.7,2522.6,1.94471]
[1748667175815,7.03050581,2522.7,2522.6,1.94471]
[1748667176915,7.03050581,2522.7,2522.6,0.79251]
[1748667177116,7.03050581,2522.7,2522.4,0.79851581]
[1748667177309,1.355,2522.6,2522.5,0.79255]
[1748667177813,6.355,2522.6,2522.5,0.79255]
[1748667180911,6.355,2522.6,2522.4,0.00595581]
[1748667181114,1.3323,2522.5,2522.4,0.00595581]
[1748667181618,6.3323,2522.5,2522.4,0.00595581]
[1748667181815,7.74882828,2522.5,2522.4,0.79853581]
[1748667182320,8.54137828,2522.5,2522.4,0.00595581]
[1748667182513,7.74882828,2522.5,2521.7,3.2078]
[1748667182712,4.5717,2522.4,2521.7,3.2078]
[1748667183016,2.15654,2522.3,2521.9,0.79273]
[1748667183212,1.9883,2522.2,2521.9,0.79271]
[1748667183413,1.3639,2522.1,2522.0,0.7927]
[1748667183920,6.3639,2522.1,2522.0,0.7927]
[1748667184119,6.3639,2522.1,2521.8,0.00595581]
[1748667184417,1.3639,2522.0,2521.9,0.79273]
[1748667184919,6.3639,2522.0,2521.9,0.79273]
[1748667186820,1.3639,2522.0,2521.9,0.79273]
[1748667195119,0.6244,2522.2,2521.8,0.00595581]
[1748667195310,1.9755,2522.3,2522.2,0.79264]
[1748667195721,8.38555831,2522.3,2522.2,0.79264]
[1748667196424,3.38555831,2522.3,2522.2,0.79264]
[1748667196926,1.41005831,2522.3,2522.2,0.79264]
[1748667197522,3.2078,2522.4,2522.3,0.79261]
[1748667198425,1.2851,2522.9,2522.6,0.79251]
[1748667199120,2.07752,2522.9,2522.6,0.79251]
[1748667199322,1.41206561,2522.7,2522.6,0.79251]
[1748667199627,9.61986561,2522.7,2522.2,3.2078]
[1748667199823,1.9097,2522.6,2522.5,0.79255]
[1748667200327,8.3217598,2522.6,2522.4,0.79256]
[1748667200526,1.2851,2522.5,2522.4,0.79256]
[1748667200917,7.6971598,2522.5,2522.4,0.79256]
[1748667201524,7.6971598,2522.5,2522.1,1.894]
[1748667201740,1.278,2522.4,2522.3,0.7926]
[1748667202525,2.6900598,2522.4,2522.3,0.7926]
[1748667204429,7.6900598,2522.4,2522.3,0.7926]
[1748667205520,2.6900598,2522.4,2522.3,0.7926]
[1748667207329,10.8978598,2522.4,2522.3,0.7926]
[1748667207525,6.1664901,2522.4,2522.3,0.7926]
[1748667207828,5.8978598,2522.4,2522.3,0.7926]
[1748667208230,6.6904398,2522.4,2522.2,0.79261]
[1748667208430,1.3671,2522.3,2522.2,0.79261]
[1748667208623,2.7791598,2522.3,2522.2,0.79261]
[1748667208823,3.04779615,2522.3,2522.2,0.79261]
[1748667209018,3.84040615,2522.3,2522.1,0.79265]
[1748667209232,2.0337,2522.2,2522.0,0.79268]
[1748667209426,1.3671,2522.1,2522.0,0.79268]
[1748667210028,2.7791598,2522.1,2522.0,0.79268]
[1748667210436,6.7796398,2522.1,2521.9,0.79272]
[1748667210733,1.2482,2522.0,2521.9,0.79272]
[1748667210933,2.04091,2522.0,2521.8,0.79870581]
[1748667211328,1.2482,2521.9,2521.8,0.79870581]
[1748667211527,3.4529898,2521.9,2521.8,0.00595581]
[1748667211729,8.4529898,2521.9,2521.8,0.00595581]
[1748667212028,7.6602598,2521.9,2521.8,0.00595581]
[1748667212327,7.6602598,2521.9,2521.8,0.79871581]
[1748667214436,7.6602598,2521.9,2521.8,0.00595581]
[1748667215138,8.4529998,2521.9,2521.8,0.00595581]
[1748667217029,2.6602598,2521.9,2521.8,0.79872581]
[1748667217523,2.6602598,2521.9,2521.8,0.00595581]
[1748667217730,3.4529998,2521.9,2521.8,0.00595581]
[1748667219133,8.4529998,2521.9,2521.8,0.00595581]
[1748667219541,8.72140053,2521.9,2521.8,0.00595581]
[1748667219734,8.72138804,2521.9,2521.8,0.00595581]
[1748667219940,8.72139112,2521.9,2521.8,0.00595581]
[1748667220238,8.72125917,2521.9,2521.8,0.00595581]
[1748667220634,8.72125983,2521.9,2521.8,0.00595581]
[1748667220837,8.72124802,2521.9,2521.8,0.00595581]
[1748667221033,8.4529898,2521.9,2521.8,0.00595581]
[1748667221840,8.72124518,2521.9,2521.8,0.00595581]
[1748667222337,8.4529898,2521.9,2521.8,0.00595581]
[1748667222540,8.72120519,2521.9,2521.8,0.00595581]
[1748667222728,8.72120786,2521.9,2521.8,0.00595581]
[1748667222933,8.4529898,2521.9,2521.8,0.00595581]
[1748667223139,8.72121361,2521.9,2521.8,0.00595581]
[1748667223439,3.72121361,2521.9,2521.8,0.00595581]
[1748667223842,3.4529898,2521.9,2521.8,0.00595581]
[1748667224038,3.7211556,2521.9,2521.8,0.00595581]
[1748667224240,3.72115615,2521.9,2521.8,0.00595581]